bitfinex/quotes_SOLUSD_20240827
["timestamp","ask_amount","ask_price","bid_price","bid_amount"]
[1724739809173,51.2842,159.13,159.08,6.2861]
[1724739813155,51.2842,159.13,159.01,6.1672]
[1724739813156,29.65760457,159.12,159.01,6.1672]
[1724739813480,9.65760457,159.1,159.03,16.0649]
[1724739814287,9.65760457,159.1,159.03,15.7202]
[1724739814288,45.0,159.09,159.03,15.7202]
[1724739814757,9.65760457,159.08,159.03,15.7202]
[1724739814957,15.94410457,159.08,159.03,22.0082]
[1724739815158,6.2865,159.08,159.03,22.0082]
[1724739816297,6.2865,159.08,159.03,15.7202]
[1724739816752,6.2866,159.07,159.03,15.7202]
[1724739816955,6.2866,159.07,159.02,1.25746076]
[1724739817391,6.2866,159.07,159.01,6.2886]
[1724739819054,6.2861,159.08,159.02,7.54587737]
[1724739820877,6.2867,159.07,159.02,6.2884]
[1724739821075,6.2874,159.05,159.0,31.66970457]
[1724739821378,6.2874,159.05,159.0,22.0121]
[1724739822158,45.0,159.09,159.01,7.54644279]
[1724739822358,20.0,159.08,159.01,6.2889]
[1724739823783,6.2866,159.07,159.01,6.2889]
[1724739824289,20.0,159.06,159.01,6.2889]
[1724739824787,26.2873,159.06,159.0,22.0122]
[1724739825568,26.2873,159.06,159.01,1.25758869]
[1724739826066,26.2873,159.06,159.0,22.0122]
[1724739826465,6.2873,159.05,159.0,22.0122]
[1724739827289,20.0,159.06,159.0,22.0122]
[1724739827290,26.2869,159.06,159.01,1.25759529]
[1724739828679,26.2869,159.06,159.0,22.0122]
[1724739828680,6.2878,159.04,159.0,15.723]
[1724739829687,6.2873,159.05,159.0,22.0122]
[1724739829888,6.2873,159.05,159.01,1.25772217]
[1724739830497,6.2873,159.05,159.0,22.0122]
[1724739833122,6.2873,159.05,159.01,1.25758244]
[1724739833397,6.2873,159.05,159.01,7.54648244]
[1724739833798,6.2873,159.05,159.01,6.2889]
[1724739835291,41.4488,159.06,159.01,7.54648224]
[1724739835467,20.0,159.06,159.02,7.54588563]
[1724739835671,26.2866,159.07,159.02,6.2884]
[1724739837183,15.1619,159.1,159.05,6.287]
[1724739837383,15.1619,159.1,159.06,7.54410922]
[1724739837585,15.1619,159.14,159.06,1.25720922]
[1724739837880,15.1619,159.14,159.06,10.91481379]
[1724739838596,24.81950457,159.14,159.04,25.37620457]
[1724739839487,9.65760457,159.12,159.04,15.7186]
[1724739839685,51.2849,159.11,159.06,6.2869]
[1724739840297,51.2849,159.11,159.05,6.2872]
[1724739840987,15.94310457,159.1,159.05,6.2872]
[1724739841302,45.0,159.09,159.04,22.0062]
[1724739841977,45.0,159.09,159.05,1.25732977]
[1724739842374,9.65760457,159.12,159.05,1.25732977]
[1724739842582,26.285,159.11,159.05,1.25721841]
[1724739843802,26.285,159.11,159.06,6.2869]
[1724739846199,26.285,159.11,159.07,1.25717692]
[1724739846495,26.285,159.11,159.06,6.2869]
[1724739848510,6.2845,159.13,159.07,1.2571679]
[1724739848684,65.0,159.12,159.07,1.2571679]
[1724739849284,45.0,159.12,159.07,1.2571679]
[1724739849677,45.0,159.12,159.08,6.2859]
[1724739850987,15.1619,159.14,159.07,1.2571679]
[1724739851193,20.0,159.13,159.09,6.2856]
[1724739852801,21.4457,159.14,159.09,6.2856]
[1724739854200,6.2834,159.15,159.1,6.2853]
[1724739854501,65.0,159.14,159.1,6.2853]
[1724739854708,45.0,159.14,159.1,6.2853]
[1724739855083,6.283,159.16,159.11,7.54178751]
[1724739855295,20.0,159.15,159.11,23.25398751]
[1724739855497,26.2834,159.15,159.11,15.7123]
[1724739856496,45.0,159.14,159.11,15.7123]
[1724739857525,51.2838,159.14,159.09,6.2856]
[1724739860536,6.2842,159.13,159.08,22.0013]
[1724739862735,51.2845,159.12,159.08,22.0013]
[1724739863617,6.285,159.11,159.07,6.2865]
[1724739864142,45.0,159.1,159.06,6.2868]
[1724739864507,45.0,159.1,159.07,7.54352441]
[1724739864836,45.0,159.11,159.07,6.2864]
[1724739865137,51.285,159.11,159.06,6.2868]
[1724739865507,6.2854,159.1,159.05,22.0053]
[1724739865706,45.0,159.09,159.05,22.0053]
[1724739866143,45.0,159.09,159.06,6.2869]
[1724739866440,6.2857,159.09,159.05,15.718]
[1724739868036,51.2854,159.1,159.05,15.718]
[1724739868238,20.0,159.09,159.05,15.718]
[1724739869338,51.2854,159.1,159.05,23.26255059]
[1724739870644,51.2854,159.1,159.05,22.0053]
[1724739873453,6.2862,159.08,159.03,6.2881]
[1724739873760,45.0,159.07,159.03,6.2881]
[1724739873924,6.2859,159.09,159.04,6.2876]
[1724739874826,6.2859,159.09,159.05,1.25725239]
[1724739875223,6.2859,159.09,159.04,6.2876]
[1724739878159,51.2861,159.08,159.03,6.288]
[1724739881548,6.2866,159.07,159.02,6.2884]
[1724739884745,45.0,159.06,159.02,6.2884]
[1724739885334,51.287,159.06,159.01,22.0101]
[1724739886460,6.2873,159.05,159.01,15.7213]
[1724739886647,45.0,159.04,159.01,15.7213]
[1724739892264,61.4054,159.04,158.98,0.8160822]
[1724739892467,61.4054,159.04,158.98,2.07394808]
[1724739892769,61.4054,159.04,158.98,0.8160822]
[1724739893453,61.4054,159.04,158.98,2.07376673]
[1724739893651,67.6932,159.04,158.99,6.2895]
[1724739895269,67.6932,159.04,159.0,1.25768541]
[1724739896443,67.6932,159.04,158.99,6.2895]
[1724739896648,67.6932,159.04,159.0,1.25768584]
[1724739897648,67.6932,159.04,158.99,6.2895]
[1724739897851,6.2881,159.03,158.98,7.1060822]
[1724739898078,45.0,159.02,158.98,7.1060822]
[1724739898247,45.0,159.02,158.99,1.25782123]
[1724739907880,45.0,159.02,158.98,7.1060822]
[1724739908754,16.4054,159.04,158.99,1.25775408]
[1724739908958,45.0,159.03,158.99,1.25775408]
[1724739909160,16.4054,159.04,158.99,26.63875865]
[1724739909779,16.4054,159.04,159.01,6.2888]
[1724739911071,16.4054,159.04,159.02,1.25756204]
[1724739911384,16.4054,159.04,159.01,6.2888]
[1724739911965,16.4054,159.04,159.02,1.25756095]
[1724739912887,6.2869,159.06,159.01,6.2888]
[1724739913115,45.0,159.05,159.01,6.2888]
[1724739914881,51.2874,159.05,159.0,6.2892]
[1724739915484,6.2877,159.04,159.0,6.2892]
[1724739915694,45.0,159.03,159.0,6.2892]
[1724739918387,67.9472,159.03,158.99,15.7234]
[1724739920070,67.9472,159.03,158.98,10.7399982]
[1724739920276,61.659,159.03,158.98,4.4499982]
[1724739921688,6.2885,159.02,158.98,4.4499982]
[1724739921893,45.0,159.01,158.98,4.4499982]
[1724739922175,26.2893,159.0,158.98,4.4499982]
[1724739922387,45.0,158.99,158.98,4.4499982]
[1724739926804,6.2885,159.02,158.98,4.4499982]
[1724739927009,65.0,159.01,158.98,4.4499982]
[1724739927411,64.90602765,159.01,158.98,4.4499982]
[1724739928909,45.0,159.01,158.98,4.4499982]
[1724739929313,45.0,159.02,158.98,4.4499982]
[1724739930901,51.2885,159.02,158.98,4.4499982]
[1724739934718,6.2894,159.0,158.98,4.4499982]
[1724739935016,45.0,158.99,158.98,4.4499982]
[1724739937419,51.2897,158.99,158.98,4.4499982]
[1724739940724,16.659,159.03,158.98,4.4499982]
[1724739941106,6.2886,159.02,158.98,4.4499982]
[1724739941306,6.2886,159.02,158.98,10.7399982]
[1724739942501,45.0,159.01,158.98,10.7399982]
[1724739943707,45.0,159.02,158.98,10.7399982]
[1724739945909,51.2885,159.02,158.98,10.7399982]
[1724739948142,45.0,159.02,158.98,10.7399982]
[1724739949019,51.2886,159.02,158.98,4.4499982]
[1724739951234,6.2889,159.01,158.98,4.4499982]
[1724739951419,45.0,159.0,158.98,4.4499982]
[1724739951827,45.0,159.01,158.98,4.4499982]
[1724739956049,45.0,159.01,158.98,10.7399982]
[1724739956335,16.659,159.03,158.99,6.2896]
[1724739956532,20.0,159.02,158.99,6.2896]
[1724739957718,45.0,159.01,158.99,6.2896]
[1724739960130,45.0,159.01,158.98,10.7399982]
[1724739960342,45.0,159.01,158.98,4.4499982]
[1724739961533,20.0,159.0,158.98,4.4499982]
[1724739961727,45.0,158.99,158.98,4.4499982]
[1724739964127,51.2897,158.99,158.98,4.4499982]
[1724739964329,87.9035,158.99,158.98,4.4499982]
[1724739965420,97.56110457,158.99,158.98,4.4499982]
[1724739966523,87.9035,158.99,158.98,4.4499982]
[1724739966837,97.56110457,158.99,158.98,4.4499982]
[1724739974525,103.99330457,158.99,158.98,4.4499982]
[1724739975832,110.53638869,158.99,158.98,4.4499982]
[1724739976035,100.87878412,158.99,158.98,4.4499982]
[1724739976239,94.44658412,158.99,158.98,4.4499982]
[1724739987370,77.83278412,158.99,158.98,4.4499982]
[1724739990055,107.49038869,158.99,158.98,4.4499982]
[1724739990361,107.49038869,158.99,158.88,8.70856889]
[1724739990362,6.292,158.93,158.88,8.70856889]
[1724739990538,21.9578,158.98,158.88,2.41456889]
[1724739990539,9.65760457,158.92,158.88,2.41456889]
[1724739990742,6.2929,158.91,158.88,2.41456889]
[1724739991148,6.2925,158.92,158.88,2.41456889]
[1724739991347,12.81977893,158.95,158.89,6.2935]
[1724739991554,65.0,158.94,158.9,16.99160837]
[1724739991849,65.0,158.94,158.9,15.7331]
[1724739992038,71.2917,158.94,158.9,15.7331]
[1724739992660,65.0,158.94,158.9,15.7331]
[1724739992859,65.0,158.94,158.9,22.0263]
[1724739995069,65.0,158.94,158.9,15.7331]
[1724739995740,71.2918,158.94,158.9,15.7331]
[1724739996340,65.0,158.94,158.88,2.41456889]
[1724739996658,6.2929,158.91,158.88,2.41456889]
[1724739996975,51.2932,158.9,158.88,2.41456889]
[1724739998679,45.0,158.9,158.88,2.41456889]
[1724740000085,51.2932,158.9,158.88,2.41456889]
[1724740002751,45.0,158.9,158.88,2.41456889]
[1724740003055,6.2924,158.92,158.88,2.41456889]
[1724740003256,20.0,158.91,158.88,2.41456889]
[1724740004759,45.0,158.9,158.88,2.41456889]
[1724740011969,51.2932,158.9,158.88,2.41456889]
[1724740015870,45.0,158.9,158.88,2.41456889]
[1724740017087,51.2933,158.9,158.88,2.41456889]
[1724740021287,41.8736,158.89,158.88,2.41456889]
[1724740021587,86.8736,158.89,158.88,2.41456889]
[1724740022302,65.0,158.89,158.88,2.41456889]
[1724740023164,71.2936,158.89,158.88,2.41456889]
[1724740025772,80.95120457,158.89,158.88,2.41456889]
[1724740027168,71.2936,158.89,158.88,2.41456889]
[1724740027362,65.0,158.89,158.88,2.41456889]
[1724740034264,71.2936,158.89,158.88,2.41456889]
[1724740034466,65.0,158.89,158.88,2.41456889]
[1724740034889,15.58,158.93,158.88,2.41456889]
[1724740035095,6.292,158.94,158.88,8.70856889]
[1724740035397,6.292,158.94,158.88,24.44366889]
[1724740036097,9.65760457,158.96,158.88,24.44366889]
[1724740036098,6.2922,158.93,158.88,24.44366889]
[1724740036390,20.0,158.92,158.88,2.41456889]
[1724740036691,20.0,158.93,158.88,2.41456889]
[1724740036896,20.0,158.96,158.88,2.41456889]
[1724740037083,6.2917,158.94,158.88,8.70846889]
[1724740037396,20.0,158.93,158.88,8.70846889]
[1724740038696,45.0,158.92,158.88,8.70846889]
[1724740039295,45.0,158.92,158.89,6.2935]
[1724740039501,45.0,158.93,158.89,6.2935]
[1724740043403,45.0,158.93,158.9,6.2931]
[1724740044101,45.0,158.94,158.9,6.2931]
[1724740044603,45.0,158.94,158.91,6.2928]
[1724740044910,45.0,158.95,158.91,6.2928]
[1724740045799,42.0411,159.01,158.92,1.25848231]
[1724740045990,42.0411,159.01,158.93,6.2919]
[1724740045991,6.2903,158.98,158.93,6.2919]
[1724740047292,20.0,158.97,158.93,6.2919]
[1724740047993,6.2903,158.98,158.93,6.2919]
[1724740048580,45.0,158.97,158.93,6.2919]
[1724740052109,51.2905,158.97,158.93,6.2919]
[1724740053513,45.0,158.97,158.94,6.2916]
[1724740053703,45.0,158.98,158.94,6.2916]
[1724740056311,51.2901,158.98,158.93,6.292]
[1724740057393,6.2908,158.96,158.91,22.0243]
[1724740057595,45.0,158.95,158.91,22.0243]
[1724740059321,45.0,158.95,158.89,6.2932]
[1724740059322,51.2912,158.95,158.89,6.2932]
[1724740059994,6.2918,158.94,158.89,6.2932]
[1724740060188,45.0,158.93,158.88,18.14936889]
[1724740060395,51.2921,158.93,158.88,24.44336889]
[1724740061710,6.2929,158.91,158.88,2.41456889]
[1724740061899,45.0,158.9,158.88,2.41456889]
[1724740062512,51.2933,158.9,158.88,2.41456889]
[1724740062703,6.2936,158.89,158.88,2.41456889]
[1724740062893,51.2936,158.89,158.88,2.41456889]
[1724740063096,71.2936,158.89,158.88,2.41456889]
[1724740063597,45.0,158.89,158.88,2.41456889]
[1724740073616,15.2477,158.95,158.88,2.41456889]
[1724740073821,15.2477,158.95,158.89,1.25855204]
[1724740074829,6.2919,158.94,158.89,7.55185204]
[1724740075131,45.0,158.93,158.89,6.2933]
[1724740075333,45.0,158.93,158.89,7.55188457]
[1724740075735,21.5389,158.95,158.9,6.2932]
[1724740076933,6.2918,158.94,158.88,24.44246889]
[1724740077144,45.0,158.93,158.88,24.44246889]
[1724740077647,45.0,158.93,158.9,6.2932]
[1724740077829,45.0,158.94,158.9,6.2932]
[1724740078147,45.0,158.94,158.9,7.55166599]
[1724740078445,45.0,158.94,158.9,6.2932]
[1724740080046,51.2917,158.94,158.89,6.2936]
[1724740080551,45.0,158.94,158.9,6.2932]
[1724740080726,51.2917,158.94,158.89,6.2935]
[1724740082749,45.0,158.94,158.88,24.44256889]
[1724740082930,45.0,158.94,158.88,18.14876889]
[1724740083130,45.0,158.95,158.88,18.14876889]
[1724740083325,20.0,158.94,158.88,18.14876889]
[1724740083530,45.0,158.93,158.88,18.14876889]
[1724740083833,6.2924,158.92,158.88,18.14876889]
[1724740084035,45.0,158.91,158.88,18.14876889]
[1724740085728,45.0,158.91,158.88,24.44276889]
[1724740086331,45.0,158.92,158.88,24.44276889]
[1724740091760,51.2925,158.92,158.88,18.14876889]
[1724740093448,6.2928,158.91,158.88,2.41456889]
[1724740093648,45.0,158.9,158.88,2.41456889]
[1724740099861,51.2932,158.9,158.88,2.41456889]
[1724740100660,6.2936,158.89,158.88,2.41456889]
[1724740100861,51.2936,158.89,158.88,2.41456889]
[1724740106244,71.2936,158.89,158.88,2.41456889]
[1724740107064,6.295,158.86,158.82,16.5567822]
[1724740107258,45.0,158.85,158.82,16.5567822]
[1724740107459,45.0,158.85,158.82,15.5567822]
[1724740108281,51.2953,158.85,158.8,6.2972]
[1724740109369,51.2953,158.85,158.79,17.00326435]
[1724740109370,45.0,158.85,158.81,7.55596244]
[1724740109552,45.0,158.85,158.81,6.2966]
[1724740111560,60.423,158.85,158.79,15.7439]
[1724740111759,6.2965,158.82,158.77,6.298]
[1724740111962,45.0,158.81,158.77,6.298]
[1724740112355,45.0,158.81,158.74,18.98780457]
[1724740112356,45.0,158.81,158.73,47.2494]
[1724740112556,6.2977,158.79,158.74,6.2993]
[1724740112876,45.0,158.78,158.75,6.2991]
[1724740113046,45.0,158.79,158.75,6.2991]
[1724740113252,45.0,158.79,158.76,6.2988]
[1724740113477,45.0,158.8,158.76,6.2988]
[1724740114347,45.0,158.8,158.75,6.299]
[1724740115586,22.691,158.79,158.73,22.0494]
[1724740115760,45.0,158.78,158.73,22.0494]
[1724740117682,45.0,158.78,158.74,6.2995]
[1724740120657,45.0,158.78,158.75,6.299]
[1724740120863,16.3931,158.79,158.76,6.2984]
[1724740122566,6.2963,158.83,158.78,6.2979]
[1724740122760,26.2964,158.82,158.77,6.2983]
[1724740123974,45.0,158.81,158.77,6.2983]
[1724740124275,51.2968,158.81,158.76,6.2987]
[1724740124491,9.65760457,158.8,158.76,6.2987]
[1724740124694,45.0,158.79,158.76,6.2987]
[1724740125772,45.0,158.79,158.75,15.7471]
[1724740126076,45.0,158.79,158.74,6.2995]
[1724740126077,51.2979,158.79,158.74,6.2995]
[1724740127792,15.95560457,158.78,158.73,6.2999]
[1724740127992,45.0,158.77,158.73,6.2999]
[1724740129007,16.3931,158.79,158.73,1.25996347]
[1724740129171,16.3931,158.79,158.72,15.7509]
[1724740129481,16.3931,158.79,158.72,25.40850457]
[1724740130388,45.0,158.78,158.72,25.40850457]
[1724740130778,45.0,158.78,158.75,6.2991]
[1724740130981,45.0,158.78,158.74,6.2994]
[1724740132395,51.298,158.78,158.73,6.2999]
[1724740132692,60.95560457,158.78,158.73,6.2999]
[1724740138103,6.2986,158.77,158.72,15.7509]
[1724740138399,45.0,158.76,158.72,15.7509]
[1724740138573,45.0,158.76,158.72,22.0509]
[1724740140082,60.95660457,158.76,158.72,15.7509]
[1724740140283,51.299,158.76,158.72,22.0513]
[1724740140801,45.0,158.76,158.72,22.0513]
[1724740145903,51.2988,158.76,158.72,15.7509]
[1724740146789,9.65760457,158.73,158.68,15.754]
[1724740147105,45.0,158.72,158.69,6.3014]
[1724740147305,45.0,158.73,158.7,6.3011]
[1724740147507,45.0,158.73,158.71,6.3007]
[1724740149597,15.3763,158.74,158.71,15.7518]
[1724740150503,15.3763,158.74,158.72,6.3003]
[1724740165993,15.3763,158.74,158.71,22.0525]
[1724740166199,45.0,158.73,158.71,22.0525]
[1724740167009,45.0,158.73,158.71,15.7518]
[1724740169519,45.0,158.73,158.72,6.3004]
[1724740169718,15.3763,158.74,158.73,6.3]
[1724740169922,22.5626,158.78,158.73,6.3]
[1724740170229,20.0,158.77,158.73,6.3]
[1724740170926,16.2645,158.78,158.74,6.2996]
[1724740171127,16.2645,158.78,158.75,6.299]
[1724740171632,6.2976,158.8,158.75,6.299]
[1724740172305,15.95440457,158.81,158.75,6.299]
[1724740172813,16.2645,158.82,158.76,1.25975735]
[1724740173017,16.2645,158.82,158.77,6.298]
[1724740173608,25.92210457,158.82,158.76,6.2987]
[1724740174228,65.0,158.81,158.76,6.2987]
[1724740174422,6.2972,158.8,158.75,22.0462]
[1724740174626,45.0,158.79,158.75,22.0462]
[1724740175513,45.0,158.79,158.76,6.2984]
[1724740175714,45.0,158.8,158.76,6.2984]
[1724740176327,20.0,158.81,158.76,7.55807678]
[1724740176830,22.5609,158.82,158.75,15.7472]
[1724740176831,16.2645,158.82,158.78,6.2979]
[1724740178837,45.0,158.81,158.78,6.2979]
[1724740179711,45.0,158.81,158.77,6.2983]
[1724740179928,51.2968,158.81,158.76,6.2987]
[1724740180312,45.0,158.81,158.75,15.7472]
[1724740180512,45.0,158.81,158.76,6.2984]
[1724740181729,51.2971,158.81,158.76,6.2984]
[1724740182318,45.0,158.81,158.77,6.2984]
[1724740184134,45.0,158.81,158.78,15.7448]
[1724740184726,45.0,158.81,158.79,6.2972]
[1724740186538,45.0,158.81,158.8,6.2972]
[1724740189023,45.0,158.81,158.78,15.7448]
[1724740189231,45.0,158.81,158.72,31.5008]
[1724740189232,45.0,158.81,158.75,15.7477]
[1724740189557,51.297,158.81,158.76,6.2986]
[1724740190621,66.378,158.81,158.76,6.2986]
[1724740191044,6.2972,158.8,158.75,22.0468]
[1724740191239,45.0,158.79,158.75,22.0468]
[1724740191926,45.0,158.79,158.77,6.2983]
[1724740192122,45.0,158.8,158.77,6.2983]
[1724740194126,45.0,158.8,158.78,6.2979]
[1724740197448,21.3765,158.85,158.79,6.2976]
[1724740197648,26.2956,158.84,158.79,6.2976]
[1724740198522,6.2956,158.84,158.79,6.2976]
[1724740198740,15.081,158.85,158.81,6.2967]
[1724740199639,21.3764,158.85,158.8,6.2972]
[1724740200054,45.0,158.84,158.8,6.2972]
[1724740200344,45.0,158.84,158.81,6.2967]
[1724740202957,45.0,158.84,158.8,6.2971]
[1724740205156,45.0,158.84,158.81,6.2966]
[1724740205858,45.0,158.84,158.8,25.39990457]
[1724740206033,45.0,158.84,158.81,1.25922061]
[1724740206230,15.081,158.85,158.83,6.296]
[1724740206443,6.2941,158.88,158.83,6.296]
[1724740207447,9.65760457,158.87,158.8,15.7423]
[1724740207654,9.65760457,158.87,158.72,70.13121828]
[1724740207655,15.8742,158.84,158.77,15.7458]
[1724740208036,45.0,158.83,158.78,6.2979]
[1724740208246,6.2964,158.82,158.77,22.0441]
[1724740208443,45.0,158.81,158.77,22.0441]
[1724740208644,60.95360457,158.83,158.78,6.298]
[1724740209834,6.2965,158.82,158.77,22.0441]
[1724740210152,45.0,158.81,158.77,22.0441]
[1724740211735,51.2968,158.81,158.77,15.7458]
[1724740213836,6.2974,158.8,158.75,6.2991]
[1724740214034,51.2976,158.79,158.74,15.7489]
[1724740214255,45.0,158.78,158.74,15.7489]
[1724740214765,45.0,158.78,158.74,22.0481]
[1724740214943,45.0,158.78,158.74,15.7489]
[1724740215255,45.0,158.79,158.74,15.7489]
[1724740215642,45.0,158.79,158.75,6.2991]
[1724740216541,45.0,158.79,158.76,6.2987]
[1724740216756,6.2964,158.82,158.77,6.2983]
[1724740216966,15.8742,158.84,158.78,1.25960379]
[1724740217156,22.0595,158.89,158.81,15.742]
[1724740217345,6.2942,158.88,158.82,6.2964]
[1724740218159,22.0595,158.89,158.82,1.25921497]
[1724740218379,22.0595,158.89,158.85,6.2951]
[1724740219441,28.3531,158.89,158.84,22.0346]
[1724740219653,45.0,158.88,158.84,15.739]
[1724740220059,6.2944,158.87,158.8,15.7423]
[1724740220261,45.0,158.86,158.8,15.7423]
[1724740220460,45.0,158.86,158.82,6.2963]
[1724740220679,45.0,158.87,158.82,6.2963]
[1724740221058,45.0,158.87,158.83,6.2957]
[1724740221370,28.3532,158.89,158.84,6.2955]
[1724740221545,15.8742,158.89,158.85,9.65760457]
[1724740221869,15.8742,158.89,158.86,6.2948]
[1724740222067,6.2928,158.92,158.85,9.65760457]
[1724740222369,23.0435,158.93,158.87,9.65760457]
[1724740223071,23.0435,158.93,158.89,6.2936]
[1724740223848,45.0,158.92,158.89,6.2936]
[1724740224252,45.0,158.92,158.9,6.2931]
[1724740224568,45.0,158.92,158.88,15.735]
[1724740224569,45.0,158.92,158.88,22.0286]
[1724740224765,45.0,158.92,158.89,6.2934]
[1724740225898,23.0435,158.97,158.9,1.25865441]
[1724740226055,23.0435,158.97,158.91,15.732]
[1724740226574,23.0435,158.97,158.92,6.2923]
[1724740226960,16.4157,158.97,158.92,6.2923]
[1724740227749,16.4157,158.97,158.93,6.292]
[1724740228972,16.4157,158.97,158.91,15.732]
[1724740230363,45.0,158.96,158.93,6.2919]
[1724740230876,45.0,158.96,158.92,6.2924]
[1724740231469,45.0,158.96,158.92,7.5507795]
[1724740231678,45.0,158.96,158.93,6.2919]
[1724740232965,45.0,158.97,158.93,6.2919]
[1724740235794,51.2905,158.97,158.91,15.732]
[1724740236085,51.2905,158.97,158.91,22.0246]
[1724740237175,51.2905,158.97,158.92,6.2924]
[1724740237577,45.0,158.97,158.93,6.292]
[1724740237773,45.0,158.98,158.93,6.292]
[1724740240984,45.0,158.98,158.92,6.2924]
[1724740241179,24.37523019,158.98,158.91,15.732]
[1724740241355,6.2914,158.95,158.91,15.732]
[1724740241755,66.5209,158.94,158.89,6.2936]
[1724740242088,60.2291,158.94,158.9,6.2932]
[1724740242268,45.0,158.94,158.9,15.7322]
[1724740242468,15.2291,158.98,158.9,15.7322]
[1724740242781,51.2905,158.97,158.92,6.2924]
[1724740243154,45.0,158.97,158.9,15.7322]
[1724740243361,24.37523019,158.94,158.88,6.2937]
[1724740243582,45.0,158.93,158.88,6.2937]
[1724740244683,51.2922,158.93,158.88,6.2937]
[1724740245581,45.89693019,158.92,158.87,15.736]
[1724740245782,45.0,158.91,158.87,15.736]
[1724740245964,9.75702538,158.9,158.87,15.736]
[1724740246166,45.0,158.89,158.87,15.736]
[1724740246371,9.75702538,158.88,158.83,15.7392]
[1724740246572,45.0,158.87,158.84,6.2956]
[1724740247064,45.0,158.87,158.85,7.55413555]
[1724740247261,16.05022538,158.9,158.85,6.2951]
[1724740247460,45.0,158.89,158.85,6.2951]
[1724740248400,45.0,158.89,158.86,7.55361586]
[1724740248569,45.0,158.89,158.86,6.2947]
[1724740248777,45.0,158.89,158.83,15.7392]
[1724740248981,9.75702538,158.91,158.83,15.7392]
[1724740248982,45.0,158.9,158.83,15.7392]
[1724740249163,9.75702538,158.89,158.83,15.7392]
[1724740249362,45.0,158.88,158.83,15.7392]
[1724740249676,45.0,158.88,158.85,6.2952]
[1724740250361,45.0,158.88,158.84,6.2956]
[1724740250778,45.0,158.88,158.83,15.7392]
[1724740251675,45.0,158.88,158.83,22.035]
[1724740251989,45.0,158.88,158.83,15.7392]
[1724740252785,45.0,158.88,158.84,6.2956]
[1724740253369,51.2941,158.88,158.83,15.7392]
[1724740253690,15.0218,158.86,158.81,6.2967]
[1724740253870,45.0,158.85,158.82,6.2962]
[1724740255664,45.0,158.85,158.81,6.2967]
[1724740256868,45.0,158.85,158.82,6.2964]
[1724740259096,21.3151,158.9,158.84,15.7391]
[1724740260690,45.0,158.89,158.85,6.2951]
[1724740261694,45.0,158.89,158.84,15.7391]
[1724740261869,9.75702538,158.88,158.84,15.7391]
[1724740262074,45.0,158.87,158.84,22.0346]
[1724740262894,45.0,158.87,158.84,15.7391]
[1724740263295,51.2946,158.87,158.82,6.2963]
[1724740263472,9.75702538,158.86,158.82,6.2963]
[1724740263667,45.0,158.85,158.82,6.2963]
[1724740264587,45.0,158.85,158.81,15.7419]
[1724740264884,26.39732538,158.84,158.81,15.7419]
[1724740265082,45.0,158.83,158.81,15.7419]
[1724740265481,45.0,158.83,158.79,6.2975]
[1724740267494,9.75702538,158.82,158.78,15.7449]
[1724740267792,45.0,158.81,158.79,6.2975]
[1724740267970,26.39732538,158.84,158.78,15.7449]
[1724740267971,16.6403,158.84,158.8,6.297]
[1724740268173,16.6403,158.84,158.78,15.7449]
[1724740268174,16.6403,158.84,158.81,6.2968]
[1724740268595,16.6403,158.84,158.82,6.2963]